fUSD/lending_fUSD_20260203
["ID","MTS","AMOUNT","RATE_DAILY","PERIOD"]
[404392266,1770095437887,-500.0,8.773e-05,2]
[404392268,1770095437897,-9999.99,8.817e-05,2]
[404392270,1770095437907,-4999.99,8.817e-05,2]
[404392272,1770095437916,-9999.99,8.817e-05,2]
[404392274,1770095437926,-5313.97,8.817e-05,2]
[404392277,1770095437935,-1280.07496042,8.95e-05,2]
[404392279,1770095437946,-1680.0,9.125e-05,2]
[404392281,1770095437956,-250.0,9.126e-05,2]
[404392283,1770095437965,-250.0,9.126e-05,2]
[404392285,1770095437974,-150.99,9.235e-05,2]
[404392287,1770095437983,-299.99,9.235e-05,2]
[404392289,1770095437993,-343.78,9.235e-05,2]
[404392291,1770095438005,-9999.99,9.235e-05,2]
[404392293,1770095438015,-150.99,9.235e-05,2]
[404392295,1770095438025,-9999.99,9.235e-05,2]
[404392297,1770095438034,-999.99,9.235e-05,2]
[404392299,1770095438043,-500.0,9.321e-05,2]
[404392301,1770095438053,-614.51163375,9.321e-05,2]
[404392303,1770095438062,-502.1700093,9.321e-05,2]
[404392305,1770095438071,-154.87,9.946e-05,2]
[404392307,1770095438081,-170.34718645,0.0001,2]
[404392309,1770095438090,-151.0,0.0001,2]
[404392311,1770095438099,-151.0,0.0001,2]
[404392313,1770095438109,-151.0,0.0001,2]
[404392314,1770095438118,-151.0,0.0001,2]
[404392317,1770095438128,-500.0,0.0001,2]
[404392318,1770095438137,-151.0,0.0001,2]
[404392320,1770095438147,-500.0,0.0001,2]
[404392322,1770095438163,-151.0,0.0001,2]
[404392325,1770095438173,-151.0,0.0001,2]
[404392327,1770095438182,-500.0,0.0001,2]
[404392328,1770095438192,-151.0,0.0001,2]
[404392331,1770095438202,-151.0,0.0001,2]
[404392333,1770095438211,-500.0,0.0001,2]
[404392335,1770095438220,-151.0,0.0001,2]
[404392337,1770095438229,-500.0,0.0001,2]
[404392339,1770095438239,-151.0,0.0001,2]
[404392341,1770095438249,-500.0,0.0001,2]
[404392343,1770095438259,-151.0,0.0001,2]
[404392345,1770095438268,-500.0,0.0001,2]
[404392347,1770095438277,-151.0,0.0001,2]
[404392349,1770095438287,-500.0,0.0001,2]
[404392351,1770095438296,-151.0,0.0001,2]
[404392353,1770095438305,-500.0,0.0001,2]
[404392355,1770095438315,-500.0,0.0001,2]
[404392357,1770095438324,-151.0,0.0001,2]
[404392359,1770095438334,-151.0,0.0001,2]
[404392361,1770095438343,-500.0,0.0001,2]
[404392363,1770095438353,-151.0,0.0001,2]
[404392365,1770095438362,-151.0,0.0001,2]
[404392367,1770095438372,-151.0,0.0001,2]
[404392369,1770095438382,-151.0,0.0001,2]
[404392372,1770095438401,-151.0,0.0001,2]
[404392374,1770095438412,-500.0,0.0001,2]
[404392376,1770095438422,-500.0,0.0001,2]
[404392378,1770095438432,-500.0,0.0001,2]
[404392381,1770095438441,-500.0,0.0001,2]
[404392383,1770095438453,-500.0,0.0001,2]
[404392385,1770095438463,-500.0,0.0001,2]
[404392387,1770095438472,-500.0,0.0001,2]
[404392389,1770095438481,-500.0,0.0001,2]
[404392391,1770095438491,-500.0,0.0001,2]
[404392393,1770095438501,-500.0,0.0001,2]
[404392395,1770095438510,-500.0,0.0001,2]
[404392397,1770095438519,-151.0,0.0001,2]
[404392399,1770095438529,-151.0,0.0001,2]
[404392401,1770095438538,-151.0,0.0001,2]
[404392403,1770095438547,-151.0,0.0001,2]
[404392405,1770095438557,-151.0,0.0001,2]
[404392407,1770095438567,-151.0,0.0001,2]
[404392409,1770095438576,-151.0,0.0001,2]
[404392411,1770095438586,-151.0,0.0001,2]
[404392413,1770095438596,-151.0,0.0001,2]
[404392415,1770095438605,-151.0,0.0001,2]
[404392417,1770095438615,-151.0,0.0001,2]
[404392419,1770095438624,-150.01402881,0.0001,2]
[404392421,1770095438634,-154.87,0.00010002,2]
[404392423,1770095438643,-2351.0,0.00010038,2]
[404392425,1770095438652,-154.87,0.00010057,2]
[404392427,1770095438662,-154.87,0.00010112,2]
[404392429,1770095438671,-154.87,0.00010167,2]
[404392431,1770095438681,-154.87,0.00010223,2]
[404392433,1770095438690,-154.87,0.00010278,2]
[404392435,1770095438699,-154.87,0.00010333,2]
[404392437,1770095438709,-154.87,0.00010388,2]
[404392439,1770095438719,-154.87,0.00010444,2]
[404392441,1770095438728,-206.84,0.0001068,2]
[404392443,1770095438738,-500.0,0.00010932,2]
[404392445,1770095438748,-150.0,0.00010959,2]
[404392447,1770095438759,-250.0,0.00010963,2]
[404392449,1770095438769,-2943.13,0.00010984,2]
[404392452,1770095438779,-2604.0,0.00011042,2]
[404392453,1770095438788,-484.13151038,0.00011099,2]
[404392454,1770095438798,-484.13151031,0.00011099,2]
[404392455,1770095438808,-484.13151031,0.00011099,2]
[404392456,1770095438818,-484.13151031,0.00011099,2]
[404392457,1770095438828,-29368.17768873,0.00011099,2]
[404392458,1770095438838,-218.83,0.00011233,2]
[404392459,1770095438847,-19966.52,0.00011335,2]
[404392460,1770095438857,-4532.96,0.0001153,2]
[404392461,1770095438867,-484.13151031,0.00011609,2]
[404392462,1770095438876,-151.0,0.00011649,2]
[404392463,1770095438886,-151.0,0.00011649,2]
[404392464,1770095438896,-151.0,0.00011649,2]
[404392465,1770095438906,-151.0,0.00011649,2]
[404392466,1770095438915,-151.0,0.00011661,2]
[404392467,1770095438926,-151.0,0.00011661,2]
[404392468,1770095438936,-151.0,0.00011689,2]
[404392469,1770095438947,-151.0,0.00011689,2]
[404392470,1770095438957,-8671.74,0.00011705,2]
[404392471,1770095438967,-183.04,0.00011884,3]
[404392472,1770095438977,-500.0,0.00012356,2]
[404392473,1770095438988,-371.64,0.00012404,2]
[404392474,1770095438999,-484.13151031,0.00012438,2]
[404392475,1770095439009,-6457.45,0.00012574,2]
[404392476,1770095439020,-2630.52109292,0.00012669,2]
[404392477,1770095439029,-6941.98678314,0.00012669,2]
[404392478,1770095439039,-12246.48754544,0.00012669,2]
[404392479,1770095439050,-18320.01295366,0.00012769,2]
[404392480,1770095439060,-13227.36762198,0.00013099,2]
[404392481,1770095439070,-721.12765535,0.00013259,2]
[404392482,1770095439080,-174.61919141,0.00013259,2]
[404392483,1770095439089,-209.40437684,0.00013259,2]
[404392484,1770095439100,-1428.38747117,0.00013259,2]
[404392485,1770095439110,-578.20924308,0.00013259,2]
[404392486,1770095439122,-500.0,0.00013259,2]
[404392487,1770095439143,-500.0,0.00013259,2]
[404392488,1770095439153,-500.0,0.00013259,2]
[404392489,1770095439163,-500.0,0.00013259,2]
[404392490,1770095439173,-322.6107,0.00013259,2]
[404392491,1770095439183,-500.0,0.00013259,2]
[404392492,1770095439192,-354.84887415,0.00013259,2]
[404392493,1770095439201,-500.0,0.00013259,2]
[404392494,1770095439212,-500.0,0.00013259,2]
[404392495,1770095439221,-500.0,0.00013259,2]
[404392496,1770095439230,-500.0,0.00013259,2]
[404392497,1770095439239,-500.0,0.00013259,2]
[404392498,1770095439249,-500.0,0.00013259,2]
[404392499,1770095439258,-484.13151031,0.00013266,2]
[404392500,1770095439269,-217.15233878,0.00013314,2]
[404392501,1770095439278,-225.18697532,0.00013369,2]
[404392502,1770095439287,-233.51889341,0.00013424,2]
[404392503,1770095439297,-242.15909246,0.00013479,2]
[404392504,1770095439306,-251.11897888,0.00013534,2]
[404392505,1770095439315,-260.4103811,0.00013589,2]
[404392506,1770095439324,-270.0455652,0.00013644,2]
[404392507,1770095439333,-500.0,0.00013698,2]
[404392508,1770095439343,-500.0,0.00013698,2]
[404392509,1770095439352,-500.0,0.00013698,2]
[404392510,1770095439361,-360.56349982,0.00013698,2]
[404392511,1770095439371,-552.61203619,0.00013698,2]
[404392512,1770095439381,-500.0,0.00013698,2]
[404392513,1770095439392,-500.0,0.00013698,2]
[404392514,1770095439401,-500.0,0.00013698,2]
[404392515,1770095439412,-500.0,0.00013698,2]
[404392516,1770095439423,-500.0,0.00013698,2]
[404392517,1770095439433,-500.0,0.00013698,2]
[404392518,1770095439443,-500.0,0.00013698,2]
[404392519,1770095439452,-500.0,0.00013698,2]
[404392520,1770095439463,-371.76186134,0.00013698,2]
[404392522,1770095439472,-500.0,0.00013698,2]
[404392523,1770095439721,-500.0,0.00013698,2]
[404392524,1770095439733,-649.42136555,0.00013698,2]
[404392525,1770095439743,-452.02134495,0.00013698,2]
[404392526,1770095439754,-500.0,0.00013698,2]
[404392527,1770095439763,-500.0,0.00013698,2]
[404392528,1770095439773,-500.0,0.00013698,2]
[404392529,1770095439782,-500.0,0.00013698,2]
[404392530,1770095439791,-280.03725112,0.00013699,2]
[404392531,1770095439801,-4600.75,0.00013699,2]
[404392532,1770095439811,-500.0,0.00013699,2]
[404392533,1770095439821,-500.0,0.00013699,2]
[404392534,1770095439831,-500.0,0.00013699,2]
[404392535,1770095439840,-500.0,0.00013699,2]
[404392536,1770095439850,-290.39862941,0.00013754,2]
[404392537,1770095439860,-181.08010149,0.00013807,2]
[404392538,1770095439869,-1481.23780761,0.00013807,2]
[404392539,1770095439878,-301.1433787,0.00013809,2]
[404392540,1770095439887,-5008.0,0.00014,2]
[404392541,1770095439896,-484.13151031,0.00014094,2]
[404392542,1770095439905,-1000.0,0.00014247,2]
[404392543,1770095439914,-1000.0,0.00014247,2]
[404392544,1770095439923,-1001.21553048,0.00014247,2]
[404392545,1770095439932,-187.78006525,0.00014355,2]
[404392546,1770095439942,-465.01580791,0.00014355,2]
[404392547,1770095439953,-4600.75,0.00014384,2]
[404392548,1770095439962,-500.0,0.00014521,2]
[404392549,1770095439971,-334.5472959,0.00014628,2]
[404392550,1770095439980,-1000.0,0.00014637,2]
[404392551,1770095439990,-1000.0,0.00014637,2]
[404392552,1770095439998,-1000.0,0.00014637,2]
[404392553,1770095440007,-150.01402881,0.00014689,2]
[404392554,1770095440017,-369.98194845,0.00014795,2]
[404392555,1770095440026,-495.7739334,0.00014795,2]
[404392556,1770095440035,-194.72792766,0.00014903,2]
[404392557,1770095440044,-484.13151031,0.00014922,2]
[404392558,1770095440053,-250.0,0.00015,2]
[404392560,1770095440065,-900.0,0.00015068,2]
[404392561,1770095440073,-4600.75,0.00015068,2]
[404392562,1770095440082,-160.0,0.00015334,2]
[404392563,1770095440091,-201.93286099,0.00015451,2]
[404392564,1770095440100,-151.0,0.00015616,2]
[404392565,1770095440109,-484.13151031,0.0001575,2]
[404392566,1770095440118,-4600.75,0.00015753,2]
[404392567,1770095440127,-500.0,0.00015896,2]
[404392568,1770095440136,-346.92554585,0.00015997,2]
[404392569,1770095440144,-747.8093786,0.00015998,2]
[404392570,1770095440153,-599.60298507,0.00015998,2]
[404392571,1770095440162,-209.40437684,0.00015999,2]
[404392572,1770095440171,-150.0,0.00015999,2]
[404392573,1770095440180,-256.701042,0.00016,2]
[404392574,1770095440189,-9999.99,0.00016116,2]
[404392575,1770095440199,-151.0,0.00016164,2]
[404392576,1770095440207,-159.65710457,0.0001622,2]
[404392577,1770095440217,-18178.0,0.00016399,2]
[404392578,1770095440226,-1911.41410949,0.00016438,2]
[404392579,1770095440235,-500.0,0.00016438,2]
[404392580,1770095440244,-500.0,0.00016438,2]
[404392581,1770095440253,-500.0,0.00016438,2]
[404392582,1770095440263,-330.22332732,0.00016438,2]
[404392583,1770095440272,-2234.80084805,0.00016438,2]
[404392584,1770095440281,-2234.80084805,0.00016438,2]
[404392585,1770095440290,-2234.80084805,0.00016438,2]
[404392586,1770095440302,-2234.80084805,0.00016438,2]
[404392587,1770095440311,-2234.80084805,0.00016438,2]
[404392588,1770095440320,-2234.80084805,0.00016438,2]
[404392589,1770095440329,-2234.80084805,0.00016438,2]
[404392590,1770095440341,-2234.80084805,0.00016438,2]
[404392591,1770095440351,-900.0,0.00016438,2]
[404392592,1770095440360,-4600.75,0.00016438,2]
[404392593,1770095440370,-217.15233878,0.00016547,2]
[404392594,1770095440379,-1084.09055279,0.00016589,2]
[404392595,1770095440389,-1500.0,0.000167,2]
[404392596,1770095440401,-151.0,0.00016712,2]
[404392597,1770095440411,-24787.62,0.00016969,2]
[404392598,1770095440421,-1000.0,0.00016992,2]
[404392599,1770095440431,-150.0,0.00016999,2]
[404392600,1770095440441,-300.0,0.00017,2]
[404392601,1770095440450,-500.0,0.00017081,2]
[404392602,1770095440459,-225.18697532,0.00017095,2]
[404392603,1770095440469,-464.45,0.00017141,3]
[404392604,1770095440479,-1335.0,0.0001715,2]
[404392605,1770095440488,-3481.0,0.0001715,2]
[404392606,1770095440497,-616.0,0.0001715,2]
[404392607,1770095440508,-1410.0,0.0001715,2]
[404392608,1770095440517,-1271.0,0.0001715,2]
[404392609,1770095440528,-150.0,0.0001715,2]
[404392610,1770095440537,-917.0,0.0001715,2]
[404392611,1770095440546,-1205.0,0.0001715,2]
[404392612,1770095440555,-1316.0,0.0001715,2]
[404392613,1770095440564,-2471.026,0.0001715,2]
[404392614,1770095440573,-6580.0,0.0001715,2]
[404392615,1770095440582,-151.0,0.0001726,2]
[404392616,1770095440591,-25837.1765527,0.00017316,2]
[404392617,1770095440600,-359.76179104,0.00017366,2]
[404392618,1770095440609,-500.0,0.0001737,2]
[404392619,1770095440618,-159.65710457,0.00017379,2]
[404392620,1770095440627,-180.33941038,0.000175,2]
[404392621,1770095440636,-500.0,0.00017589,2]
[404392622,1770095440646,-233.51889341,0.00017643,2]
[404392623,1770095440655,-500.0,0.00017699,2]
[404392624,1770095440664,-4700.0,0.000177,6]
[404392625,1770095440673,-5888.0,0.00017708,2]
[404392626,1770095440682,-4700.0,0.000178,6]
[404392627,1770095440691,-819526.278936,0.00017806,2]
[404392628,1770095440701,-500.0,0.00017808,2]
[404392629,1770095440710,-151.0,0.00017808,2]
[404392630,1770095440719,-371.64,0.00017827,2]
[404392631,1770095440728,-1000.0,0.00017861,2]
[404392632,1770095440738,-500.0,0.00017863,2]
[404392633,1770095440747,-25000.0,0.00017865,3]
[404392634,1770095440757,-25000.0,0.00017874,3]
[404392635,1770095440766,-25000.0,0.00017882,3]
[404392636,1770095440775,-25000.0,0.00017891,3]
[404392637,1770095440784,-500.0,0.000179,2]
[404392638,1770095440793,-25000.0,0.000179,3]
[404392639,1770095440803,-160.0,0.000179,3]
[404392640,1770095440812,-2390.36989901,0.000179,3]
[404392641,1770095440822,-4700.0,0.000179,6]
[404392642,1770095440831,-188.17333529,0.000179,2]
[404392643,1770095440841,-13227.36762198,0.000179,2]
[404392644,1770095440851,-28361.3871317,0.00017905,2]
[404392645,1770095440860,-500.0,0.00017918,2]
[404392646,1770095440869,-5888.0,0.00017933,2]
[404392647,1770095440878,-500.0,0.00017972,2]
[404392648,1770095440888,-247.49286951,0.00017981,2]
[404392649,1770095440897,-151.0,0.00017997,2]
[404392650,1770095440906,-155.787,0.00017999,2]
[404392651,1770095440916,-96104.18158648,0.00017999,2]
[404392652,1770095440925,-150.0,0.00017999,2]
[404392653,1770095440935,-300.0,0.00017999,2]
[404392654,1770095440947,-300.0,0.00017999,2]
[404392655,1770095440956,-666.0,0.00017999,2]
[404392656,1770095440966,-945720.13382432,0.00018,2]
[404392657,1770095440975,-3273465.58316776,0.00018,2]
[404392658,1770095440990,-4364.80418251,0.00018,2]
[404392659,1770095442000,-151.0,0.0001,2]
[404392660,1770095442010,-5156.0782525,0.000109,2]
[404392661,1770095442021,-29368.17768872,0.00011099,2]
[404392662,1770095442029,-150.01402881,0.00013517,2]
[404392663,1770095442039,-2234.80084805,0.00016438,2]
[404392664,1770095442049,-2234.80084805,0.00016438,2]
[404392665,1770095442059,-2234.80084805,0.00016438,2]
[404392666,1770095442070,-2234.80084805,0.00016438,2]
[404392667,1770095442080,-2234.80084805,0.00016438,2]
[404392668,1770095442091,-2234.80084805,0.00016438,2]
[404392669,1770095442100,-2234.80084805,0.00016438,2]
[404392670,1770095442111,-2234.80084805,0.00016438,2]
[404392671,1770095442121,-2234.80084805,0.00016438,2]
[404392672,1770095442131,-2234.80084805,0.00016438,2]
[404392673,1770095442140,-2234.80084805,0.00016438,2]
[404392674,1770095442149,-2234.80084805,0.00016438,2]
[404392675,1770095442159,-2234.80084805,0.00016438,2]
[404392676,1770095442168,-2234.80084805,0.00016438,2]
[404392677,1770095442179,-2234.80084805,0.00016438,2]
[404392678,1770095442188,-2234.80084805,0.00016438,2]
[404392679,1770095442197,-2234.80084805,0.00016438,2]
[404392680,1770095442209,-2234.80084805,0.00016438,2]
[404392681,1770095442218,-2234.80084805,0.00016438,2]
[404392682,1770095442227,-2234.80084805,0.00016438,2]
[404392683,1770095442236,-2234.80084805,0.00016438,2]
[404392684,1770095442246,-2234.80084805,0.00016438,2]
[404392685,1770095442255,-2234.80084805,0.00016438,2]
[404392686,1770095442264,-2234.80084805,0.00016438,2]
[404392687,1770095442273,-2234.80084805,0.00016438,2]
[404392688,1770095442282,-2234.80084805,0.00016438,2]
[404392689,1770095442291,-2234.80084805,0.00016438,2]
[404392690,1770095442300,-2234.80084805,0.00016438,2]
[404392691,1770095442311,-2234.80084805,0.00016438,2]
[404392692,1770095442320,-2234.80084805,0.00016438,2]
[404392693,1770095442329,-2234.80084805,0.00016438,2]
[404392694,1770095442340,-2234.80084805,0.00016438,2]
[404392695,1770095442349,-2234.80084805,0.00016438,2]
[404392696,1770095442359,-2234.80084805,0.00016438,2]
[404392697,1770095442369,-2234.80084805,0.00016438,2]
[404392698,1770095442379,-2234.80084805,0.00016438,2]
[404392699,1770095442390,-2234.80084805,0.00016438,2]
[404392700,1770095442400,-2234.80084805,0.00016438,2]
[404392701,1770095442408,-2234.80084805,0.00016438,2]
[404392702,1770095442418,-2234.80084805,0.00016438,2]
[404392703,1770095442427,-150.01402881,0.00017034,2]
[404392704,1770095442436,-568.0,0.0001715,2]
[404392705,1770095442445,-6691438.84233235,0.00018,2]
[404392706,1770095442455,-200.45095346,0.00018,2]
[404392707,1770095442463,-2000.88772904,0.00018,2]
[404392708,1770095442473,-401.0,0.00018,2]
[404392709,1770095442482,-401.0,0.00018,2]
[404392710,1770095442491,-401.0,0.00018,2]
[404392711,1770095442501,-401.0,0.00018,2]
[404392712,1770095442510,-401.0,0.00018,2]
[404392713,1770095442519,-535.99630296,0.00018,2]
[404392714,1770095442528,-401.0,0.00018,2]
[404392715,1770095442537,-401.0,0.00018,2]
[404392716,1770095442546,-401.0,0.00018,2]
[404392717,1770095442555,-150.0,0.00018,7]
[404392718,1770095442565,-200.0,0.00018,2]
[404392719,1770095442574,-195.963946,0.00018,2]
[404392720,1770095442583,-195.963946,0.00018,2]
[404392721,1770095442593,-195.963946,0.00018,2]
[404392722,1770095442602,-195.963946,0.00018,2]
[404392723,1770095442611,-200.0,0.00018,2]
[404392724,1770095442620,-151.0,0.00018,2]
[404392725,1770095442629,-151.0,0.00018,2]
[404392726,1770095442638,-151.0,0.00018,2]
[404392727,1770095442647,-539.318378,0.00018,2]
[404392728,1770095442656,-539.318378,0.00018,2]
[404392729,1770095442666,-539.318378,0.00018,2]
[404392730,1770095442675,-539.318378,0.00018,2]
[404392731,1770095442684,-151.0,0.00018,2]
[404392732,1770095442694,-151.0,0.00018,2]
[404392733,1770095442703,-151.0,0.00018,2]
[404392734,1770095442712,-161.976308,0.00018,2]
[404392735,1770095442722,-161.976308,0.00018,2]
[404392736,1770095442731,-151.0,0.00018,2]
[404392737,1770095442740,-161.976308,0.00018,2]
[404392738,1770095442750,-183.066962,0.00018,2]
[404392739,1770095442759,-161.976308,0.00018,2]
[404392740,1770095442769,-151.0,0.00018,2]
[404392741,1770095442778,-151.0,0.00018,2]
[404392742,1770095442787,-838.451823,0.00018,2]
[404392743,1770095442797,-838.451823,0.00018,2]
[404392744,1770095442807,-838.451823,0.00018,2]
[404392745,1770095442816,-838.451823,0.00018,2]
[404392746,1770095442826,-151.0,0.00018,2]
[404392747,1770095442835,-151.0,0.00018,2]
[404392748,1770095442844,-151.0,0.00018,2]
[404392749,1770095442854,-151.0,0.00018,2]
[404392750,1770095442863,-262.636912,0.00018,2]
[404392751,1770095442872,-262.636912,0.00018,2]
[404392752,1770095442881,-877.953797,0.00018,2]
[404392753,1770095442890,-908.531434,0.00018,2]
[404392754,1770095442900,-877.953797,0.00018,2]
[404392755,1770095442909,-262.636912,0.00018,2]
[404392756,1770095442919,-908.531434,0.00018,2]
[404392757,1770095442928,-877.953797,0.00018,2]
[404392758,1770095442938,-262.636912,0.00018,2]
[404392759,1770095442951,-200.0,0.00018,2]
[404392760,1770095442960,-908.531434,0.00018,2]
[404392761,1770095442970,-877.953797,0.00018,2]
[404392762,1770095442980,-908.531434,0.00018,2]
[404392763,1770095442990,-2391.122951,0.00018,2]
[404392764,1770095443001,-2391.122951,0.00018,2]
[404392765,1770095443010,-2391.122951,0.00018,2]
[404392766,1770095443022,-2391.122951,0.00018,2]
[404392768,1770095443033,-263.120418,0.00018,2]
[404392770,1770095443042,-263.120418,0.00018,2]
[404392772,1770095443051,-263.120418,0.00018,2]
[404392774,1770095443061,-263.120418,0.00018,2]
[404392785,1770095443271,-500.0,0.00018027,2]
[404392786,1770095443281,-1139.0,0.00018058,2]
[404392787,1770095443293,-5888.0,0.00018062,2]
[404392788,1770095443303,-500.0,0.00018082,2]
[404392789,1770095443313,-1780.57021893,0.000181,2]
[404392790,1770095443322,-213.0,0.000181,2]
[404392791,1770095443333,-150.0,0.000181,2]
[404392792,1770095443342,-200.0,0.000181,2]
[404392793,1770095443351,-171.579,0.000181,2]
[404392794,1770095443360,-272.463,0.000181,2]
[404392795,1770095443368,-150.269,0.000181,2]
[404392796,1770095443377,-170.0,0.000181,2]
[404392797,1770095443386,-150.04,0.000181,2]
[404392798,1770095443395,-150.0,0.000181,2]
[404392799,1770095443404,-150.0,0.000181,2]
[404392800,1770095443414,-199.231,0.000181,2]
[404392801,1770095443423,-150.08,0.000181,2]
[404392802,1770095443433,-1500.0,0.000181,2]
[404392803,1770095443443,-1139.0,0.00018115,2]
[404392804,1770095443454,-9538.94,0.00018115,2]
[404392805,1770095443464,-5888.0,0.00018122,2]
[404392806,1770095443474,-200.0,0.00018128,2]
[404392807,1770095443484,-500.0,0.00018137,2]
[404392808,1770095443495,-341.83713414,0.00018141,2]
[404392809,1770095443504,-200.0,0.0001818,2]
[404392810,1770095443514,-200.0,0.0001818,2]
[404392811,1770095443524,-242.15909246,0.00018191,2]
[404392812,1770095443533,-500.0,0.00018192,2]
[404392813,1770095443542,-1139.0,0.00018206,2]
[404392814,1770095443552,-1139.0,0.00018233,2]
[404392815,1770095443562,-500.0,0.00018246,2]
[404392816,1770095443571,-500.0,0.00018301,2]
[404392817,1770095443582,-1000.0,0.00018306,2]
[404392818,1770095443592,-5888.0,0.00018314,2]
[404392819,1770095443601,-313.9472948,0.00018355,2]
[404392820,1770095443610,-300.0,0.00018355,2]
[404392821,1770095443619,-500.0,0.00018356,2]
[404392822,1770095443628,-88542.01,0.00018356,2]
[404392823,1770095443638,-151.0,0.00018356,2]
[404392824,1770095443647,-200.0,0.00018362,2]
[404392825,1770095443656,-200.0,0.00018362,2]
[404392826,1770095443665,-1139.0,0.00018369,2]
[404392827,1770095443674,-1139.0,0.0001839,2]
[404392828,1770095443683,-160.0,0.000184,3]
[404392829,1770095443691,-508.19931101,0.00018411,2]
[404392830,1770095443700,-1139.0,0.00018476,2]
[404392831,1770095443709,-1139.0,0.00018492,2]
[404392832,1770095443718,-361.84102799,0.00018497,2]
[404392833,1770095443729,-1139.0,0.0001851,2]
[404392834,1770095443740,-222.34,0.00018512,2]
[404392835,1770095443750,-5888.0,0.00018531,2]
[404392836,1770095443759,-159.65710457,0.00018537,2]
[404392837,1770095443769,-200.0,0.00018545,2]
[404392838,1770095443778,-200.0,0.00018545,2]
[404392839,1770095443789,-1139.0,0.00018548,2]
[404392840,1770095443798,-1139.0,0.00018562,2]
[404392841,1770095443808,-150.0,0.0001863,2]
[404392842,1770095443817,-5888.0,0.00018642,2]
[404392843,1770095443827,-152.0,0.00018647,3]
[404392844,1770095443836,-1139.0,0.00018687,2]
[404392845,1770095443845,-500.0,0.00018699,2]
[404392846,1770095443855,-200.0,0.00018731,2]
[404392847,1770095443864,-200.0,0.00018731,2]
[404392848,1770095443873,-373.07297731,0.00018735,2]
[404392849,1770095443883,-775.47832561,0.00018737,2]
[404392850,1770095443892,-621.78829552,0.00018737,2]
[404392851,1770095443901,-251.11897888,0.00018739,2]
[404392852,1770095443911,-1139.0,0.00018771,2]
[404392853,1770095443920,-1500.0,0.000188,2]
[404392854,1770095443930,-5888.0,0.00018832,2]
[404392855,1770095443940,-5888.0,0.00018871,2]
[404392856,1770095443954,-16794.94870689,0.00018888,2]
[404392857,1770095443963,-5888.0,0.00018898,2]
[404392858,1770095443974,-300.0,0.00018899,2]
[404392859,1770095443983,-221.5122,0.000189,2]
[404392860,1770095443994,-151.0,0.00018904,2]
[404392861,1770095444003,-2168.8076457,0.00018986,2]
[404392862,1770095444013,-150.0,0.00018999,2]
[404392863,1770095444024,-21628.26449605,0.00019,2]
[404392864,1770095444035,-5172.30345765,0.00019,2]
[404392865,1770095444046,-539.38584118,0.00019,2]
[404392866,1770095444058,-350.0,0.00019,2]
[404392867,1770095444067,-160.0,0.00019,3]
[404392868,1770095444076,-2168.8076457,0.00019068,2]
[404392869,1770095444087,-1000.0,0.00019116,2]
[404392870,1770095444097,-2168.8076457,0.00019123,2]
[404392871,1770095444108,-500.0,0.00019178,2]
[404392872,1770095444117,-3000.0,0.00019178,2]
[404392873,1770095444126,-3004.61685853,0.00019178,7]
[404392874,1770095444136,-500.0,0.00019178,2]
[404392875,1770095444147,-500.0,0.00019178,2]
[404392876,1770095444157,-500.0,0.00019178,2]